bitfinex-derivatives/quotes_BTCF0:USTF0_20241025
["timestamp","ask_amount","ask_price","bid_price","bid_amount"]
[1729827037657,0.484113,68188.0,68187.0,0.1216742]
[1729827038972,0.484113,68188.0,68187.0,0.12172596]
[1729827041553,0.484113,68188.0,68187.0,0.19458374]
[1729827041758,0.484113,68188.0,68187.0,0.090177]
[1729827042865,0.484113,68188.0,68187.0,0.10210564]
[1729827043067,0.484113,68188.0,68187.0,0.19459666]
[1729827043468,0.484113,68188.0,68187.0,0.19461854]
[1729827043865,0.484113,68188.0,68187.0,0.090177]
[1729827045457,0.484113,68188.0,68187.0,0.18269444]
[1729827045665,0.484113,68188.0,68187.0,0.10983371]
[1729827047670,0.534067,68188.0,68187.0,0.10983371]
[1729827047975,0.974027,68188.0,68187.0,0.07295596]
[1729827048171,0.073361,68186.0,68185.0,0.07295596]
[1729827048364,0.173269,68186.0,68185.0,0.07295596]
[1729827048674,0.173269,68186.0,68185.0,0.16598054]
[1729827048675,0.613229,68186.0,68185.0,0.16598054]
[1729827049074,0.704989,68186.0,68185.0,0.16598054]
[1729827049370,0.17327,68185.0,68184.0,0.07296498]
[1729827049672,0.17327,68185.0,68180.0,0.08760392]
[1729827049673,0.099908,68184.0,68180.0,0.08760392]
[1729827049870,0.484121,68181.0,68180.0,0.08760392]
[1729827050072,0.484121,68181.0,68180.0,0.18069116]
[1729827050369,0.484121,68181.0,68180.0,0.09308724]
[1729827051673,0.484121,68181.0,68180.0,0.16607142]
[1729827052470,0.484121,68181.0,68180.0,0.07298418]
[1729827052667,0.484121,68181.0,68180.0,0.16627925]
[1729827053273,0.484121,68181.0,68180.0,0.16626854]
[1729827053878,0.073368,68180.0,68179.0,0.19630718]
[1729827054067,0.073368,68180.0,68179.0,0.24624678]
[1729827054374,0.073368,68180.0,68179.0,0.26651215]
[1729827054375,0.123322,68180.0,68179.0,0.26651215]
[1729827054567,0.123322,68180.0,68179.0,0.33948767]
[1729827054763,0.123322,68180.0,68179.0,0.26651215]
[1729827054961,0.123322,68180.0,68179.0,0.27844188]
[1729827055163,0.123322,68180.0,68179.0,0.27844197]
[1729827055364,0.123322,68180.0,68179.0,0.27844215]
[1729827055560,0.073368,68180.0,68179.0,0.27844215]
[1729827056263,0.073368,68180.0,68179.0,0.26651215]
[1729827057465,0.123322,68180.0,68179.0,0.27844207]
[1729827057664,0.123322,68180.0,68179.0,0.22389964]
[1729827057870,0.123322,68180.0,68179.0,0.17853407]
[1729827060063,0.123322,68180.0,68179.0,0.28954354]
[1729827060477,0.049954,68180.0,68179.0,0.28954354]
[1729827060879,0.123322,68180.0,68179.0,0.28954354]
[1729827061687,0.073368,68180.0,68179.0,0.22848807]
[1729827061893,0.073368,68180.0,68179.0,0.27844207]
[1729827064296,0.073368,68180.0,68179.0,0.38902772]
[1729827064491,0.073368,68180.0,68179.0,0.31565872]
[1729827064680,0.073368,68180.0,68179.0,0.26570472]
[1729827064681,0.123322,68180.0,68179.0,0.26570472]
[1729827064886,0.484122,68180.0,68179.0,0.10516507]
[1729827065085,0.484122,68180.0,68179.0,0.18085569]
[1729827065279,0.484122,68180.0,68179.0,0.09323515]
[1729827067590,0.07337,68178.0,68175.0,0.07303517]
[1729827067895,0.073373,68175.0,68174.0,0.07303517]
[1729827068198,0.123327,68175.0,68174.0,0.16624699]
[1729827068493,0.173282,68174.0,68167.0,0.08762054]
[1729827068695,0.073375,68173.0,68172.0,0.07304149]
[1729827068885,0.073375,68173.0,68169.0,0.07304149]
[1729827068886,0.099908,68172.0,68169.0,0.07304149]
[1729827069088,0.173287,68170.0,68169.0,0.07304149]
[1729827069286,0.173287,68170.0,68153.0,0.36156]
[1729827069287,0.099908,68170.0,68168.0,0.07304149]
[1729827069493,0.073384,68165.0,68164.0,0.08762054]
[1729827069691,0.484138,68165.0,68164.0,0.1811624]
[1729827070094,0.484138,68165.0,68164.0,0.09354186]
[1729827071903,0.484138,68165.0,68155.0,0.0325]
[1729827071904,0.173293,68164.0,68162.0,0.07300307]
[1729827072195,0.073388,68161.0,68160.0,0.07300307]
[1729827072402,0.123343,68160.0,68159.0,0.07300307]
[1729827072605,0.123343,68160.0,68159.0,0.16667191]
[1729827073300,0.049954,68160.0,68158.0,0.07300307]
[1729827073491,0.049954,68158.0,68154.0,0.08762054]
[1729827073692,0.073394,68156.0,68155.0,0.10562905]
[1729827073899,0.173302,68156.0,68155.0,0.10562905]
[1729827074102,0.073394,68156.0,68155.0,0.10562905]
[1729827074399,0.14954218,68156.0,68155.0,0.10562905]
[1729827075600,0.14954218,68156.0,68155.0,0.09928495]
[1729827076395,0.14954218,68156.0,68155.0,0.09569489]
[1729827076602,0.14954218,68156.0,68155.0,0.10028495]
[1729827077198,0.14954218,68156.0,68155.0,0.10762899]
[1729827077695,0.14954218,68156.0,68155.0,0.12429649]
[1729827078805,0.073394,68156.0,68155.0,0.12429649]
[1729827079013,0.073394,68156.0,68155.0,0.11236239]
[1729827079504,0.073394,68156.0,68155.0,0.11695241]
[1729827081910,0.073394,68156.0,68155.0,0.18986319]
[1729827083017,0.073394,68156.0,68155.0,0.1878632]
[1729827083802,0.073394,68156.0,68155.0,0.09416831]
[1729827084906,0.073394,68156.0,68155.0,0.18771365]
[1729827085102,0.073394,68156.0,68155.0,0.18770801]
[1729827085303,0.073394,68156.0,68155.0,0.26110301]
[1729827085702,0.073394,68156.0,68155.0,0.18819223]
[1729827085916,0.073394,68156.0,68155.0,0.26109847]
[1729827086420,0.073394,68156.0,68155.0,0.18770347]
[1729827086914,0.073394,68156.0,68155.0,0.11479723]
[1729827087317,0.073394,68156.0,68155.0,0.19505339]
[1729827087617,0.073394,68156.0,68155.0,0.26844861]
[1729827087818,0.073394,68156.0,68155.0,0.19505361]
[1729827088510,0.073394,68156.0,68155.0,0.12214143]
[1729827088813,0.073394,68156.0,68155.0,0.11482326]
[1729827089116,0.073394,68156.0,68155.0,0.12216728]
[1729827089518,0.073394,68156.0,68155.0,0.19556228]
[1729827090815,0.073394,68156.0,68155.0,0.1955622]
[1729827092119,0.073394,68156.0,68155.0,0.10199647]
[1729827093018,0.14954218,68156.0,68155.0,0.10199647]
[1729827093517,0.14954218,68156.0,68155.0,0.19563426]
[1729827093720,0.14954218,68156.0,68155.0,0.12223926]
[1729827094221,0.14954218,68156.0,68155.0,0.19563426]
[1729827094424,0.12336775,68156.0,68155.0,0.19563426]
[1729827094618,0.04997375,68156.0,68155.0,0.18370029]
[1729827094923,0.04997375,68156.0,68155.0,0.10199646]
[1729827095125,0.04997375,68156.0,68155.0,0.19573232]
[1729827095521,0.48516475,68159.0,68155.0,0.29567982]
[1729827095731,0.48416475,68159.0,68157.0,0.073392]
[1729827096018,0.48416475,68159.0,68158.0,0.09373586]
[1729827096621,0.48416475,68159.0,68158.0,0.16712686]
[1729827097326,0.48416475,68159.0,68158.0,0.25471777]
[1729827097928,0.48416475,68159.0,68158.0,0.16712686]
[1729827098631,0.48416475,68159.0,68158.0,0.25496259]
[1729827098819,0.073386,68163.0,68158.0,0.14370961]
[1729827099126,0.073386,68163.0,68162.0,0.073387]
[1729827099331,0.12335975,68163.0,68162.0,0.25494961]
[1729827099515,0.12335975,68163.0,68162.0,0.16712286]
[1729827100232,0.12335975,68163.0,68162.0,0.25495578]
[1729827100415,0.12335975,68163.0,68162.0,0.16712286]
[1729827101527,0.12335975,68163.0,68162.0,0.09373586]
[1729827102416,0.12335975,68163.0,68162.0,0.18158634]
[1729827102617,0.12335975,68163.0,68162.0,0.09373586]
[1729827103722,0.12335975,68163.0,68162.0,0.18157874]
[1729827104022,0.12335975,68163.0,68162.0,0.09373586]
[1729827104222,0.12335975,68163.0,68162.0,0.20541915]
[1729827106333,0.04997375,68163.0,68162.0,0.09372512]
[1729827106530,0.12335975,68163.0,68162.0,0.20544188]
[1729827107133,0.12335975,68163.0,68162.0,0.22254026]
[1729827110037,0.12335975,68163.0,68162.0,0.1108235]
[1729827110236,0.12335975,68163.0,68162.0,0.22248997]
[1729827110428,0.12335975,68163.0,68162.0,0.1108235]
[1729827111337,0.12335975,68163.0,68162.0,0.11086976]
[1729827112033,0.12335975,68163.0,68162.0,0.22254371]
[1729827112235,0.12335975,68163.0,68162.0,0.22250245]
[1729827112434,0.12335975,68163.0,68162.0,0.2225126]
[1729827112740,0.12335975,68163.0,68162.0,0.11086976]
[1729827115939,0.12335975,68163.0,68162.0,0.11097387]
[1729827116132,0.12335975,68163.0,68162.0,0.19883703]
[1729827116435,0.12335975,68163.0,68162.0,0.11097387]
[1729827120241,0.12335975,68163.0,68162.0,0.19884185]
[1729827121336,0.12335975,68163.0,68162.0,0.11097387]
[1729827121535,0.15635975,68163.0,68162.0,0.11097387]
[1729827122140,0.18885975,68163.0,68162.0,0.11097387]
[1729827122438,0.2388335,68163.0,68162.0,0.09387549]
[1729827122938,0.18885975,68163.0,68162.0,0.09387549]
[1729827123433,0.6789535,68163.0,68162.0,0.09387549]
[1729827123634,0.62897975,68163.0,68162.0,0.09387549]
[1729827124638,0.6789535,68163.0,68162.0,0.09387549]
[1729827124941,0.62897975,68163.0,68162.0,0.09387549]
[1729827125248,0.6789535,68163.0,68162.0,0.16708752]
[1729827125644,0.6789535,68163.0,68162.0,0.09387549]
[1729827125847,0.6789535,68163.0,68162.0,0.16708868]
[1729827126051,0.55559375,68163.0,68161.0,0.07321319]
[1729827126252,0.12336075,68162.0,68161.0,0.07321319]
[1729827126442,0.56348075,68162.0,68160.0,0.07321319]
[1729827126747,0.56348075,68162.0,68160.0,0.07320557]
[1729827126748,0.1733355,68161.0,68160.0,0.07320557]
[1729827126939,0.073396,68154.0,68152.0,0.08786798]
[1729827127141,0.48417075,68153.0,68152.0,0.08786798]
[1729827127449,0.48417075,68153.0,68152.0,0.09371884]
[1729827127852,0.51567075,68153.0,68152.0,0.09371884]
[1729827128751,0.44227375,68153.0,68152.0,0.09367223]
[1729827128945,0.44227375,68153.0,68152.0,0.11063992]
[1729827128946,0.51567075,68153.0,68152.0,0.11063992]
[1729827129340,0.51567075,68153.0,68152.0,0.09367223]
[1729827129650,0.073403,68147.0,68144.0,0.08786798]
[1729827129847,0.04997375,68144.0,68143.0,0.08786798]
[1729827130143,0.12338075,68144.0,68143.0,0.18174599]
[1729827130348,0.12338075,68144.0,68143.0,0.09387801]
[1729827131547,0.1733545,68144.0,68143.0,0.09387801]
[1729827135142,0.0999475,68144.0,68138.0,0.08786798]
[1729827135345,0.073411,68140.0,68139.0,0.10571488]
[1729827136251,0.12338475,68140.0,68139.0,0.09836896]
[1729827137051,0.12338475,68140.0,68139.0,0.11553109]
[1729827138141,0.12338475,68140.0,68139.0,0.11550935]
[1729827139852,0.04997375,68140.0,68139.0,0.18892135]
[1729827141053,0.04997375,68140.0,68139.0,0.18433015]
[1729827141253,0.04997375,68140.0,68139.0,0.18892135]
[1729827141945,0.12338475,68140.0,68139.0,0.18892135]
[1729827142746,0.12338475,68140.0,68139.0,0.18892354]
[1729827144553,0.04997375,68140.0,68139.0,0.18892354]
[1729827144858,0.04997375,68140.0,68139.0,0.27220337]
[1729827145053,0.073408,68143.0,68139.0,0.20338248]
[1729827145249,0.3618,68145.0,68141.0,0.08786798]
[1729827145452,0.3618,68145.0,68144.0,0.073407]
[1729827145453,0.3608,68145.0,68144.0,0.073407]
[1729827145657,0.41077375,68145.0,68144.0,0.25962735]
[1729827147562,0.41077375,68145.0,68144.0,0.17175937]
[1729827148560,0.48417875,68145.0,68144.0,0.17175937]
[1729827150560,0.48417875,68145.0,68144.0,0.17910476]
[1729827151258,0.48417875,68145.0,68144.0,0.26685344]
[1729827151954,0.48417875,68145.0,68144.0,0.17910476]
[1729827152266,0.48417875,68145.0,68144.0,0.16716826]
[1729827152466,0.48417875,68145.0,68144.0,0.17175896]
[1729827152669,0.48417875,68145.0,68144.0,0.17910408]
[1729827154457,0.48417875,68145.0,68144.0,0.10569708]
[1729827154662,0.5341525,68145.0,68144.0,0.09376126]
[1729827156964,0.073409,68142.0,68141.0,0.08782791]
[1729827157159,0.1733565,68142.0,68141.0,0.18196747]
[1729827157354,0.1733565,68142.0,68141.0,0.09413956]
[1729827162364,0.1733565,68142.0,68141.0,0.18196747]
[1729827165472,0.1733565,68142.0,68141.0,0.09413956]
[1729827167274,0.1733565,68142.0,68141.0,0.16734266]
[1729827167770,0.1733565,68142.0,68141.0,0.0732031]
[1729827169467,0.073409,68142.0,68141.0,0.09410135]
[1729827169773,0.12338275,68142.0,68141.0,0.09410135]
[1729827175380,0.12338275,68142.0,68141.0,0.18192926]
[1729827175578,0.12338275,68142.0,68141.0,0.09410135]
[1729827175981,0.04997375,68141.0,68140.0,0.07341]
[1729827176179,0.12338375,68141.0,68140.0,0.16726202]
[1729827179275,0.12338375,68141.0,68140.0,0.2786544]
[1729827179475,0.07930886,68141.0,68140.0,0.2786544]
[1729827179782,0.07341,68141.0,68140.0,0.2786544]
[1729827180576,0.07341,68141.0,68140.0,0.27751697]
[1729827181186,0.07341,68141.0,68140.0,0.16652612]
[1729827182990,0.07341,68141.0,68140.0,0.17111725]
[1729827183379,0.07341,68141.0,68140.0,0.25896229]
[1729827183690,0.04997375,68142.0,68141.0,0.07341]
[1729827183892,0.0999475,68142.0,68141.0,0.19742612]
[1729827184280,0.0999475,68142.0,68141.0,0.28533164]
[1729827184582,0.1733565,68142.0,68141.0,0.28533164]
[1729827184976,0.1733565,68142.0,68141.0,0.19745548]
[1729827187492,0.1733565,68142.0,68141.0,0.12404548]
[1729827189082,0.1733565,68142.0,68141.0,0.23504432]
[1729827190092,0.22333025,68142.0,68141.0,0.20414432]
[1729827190792,0.22333025,68142.0,68141.0,0.09314548]
[1729827192887,0.073409,68142.0,68141.0,0.09314548]
[1729827193091,0.1733565,68142.0,68141.0,0.09314548]
[1729827193996,0.1733565,68142.0,68141.0,0.18106394]
[1729827194592,0.1733565,68142.0,68141.0,0.09314548]
[1729827201798,0.12338275,68142.0,68141.0,0.09314548]
[1729827202997,0.1733565,68142.0,68141.0,0.09314548]
[1729827203195,0.1733565,68142.0,68141.0,0.18106394]
[1729827203495,0.12338275,68142.0,68141.0,0.18098639]
[1729827203691,0.073409,68142.0,68141.0,0.18098639]
[1729827203893,0.073409,68142.0,68141.0,0.14304168]
[1729827204096,0.073409,68142.0,68141.0,0.14763272]
[1729827204302,0.073409,68142.0,68141.0,0.12797479]
[1729827205100,0.073409,68142.0,68141.0,0.12797468]
[1729827207687,0.3608,68144.0,68143.0,0.073408]
[1729827207899,0.3608,68144.0,68143.0,0.12797268]
[1729827208286,0.41077375,68144.0,68143.0,0.11009893]
[1729827208690,0.41077375,68144.0,68143.0,0.11009885]
[1729827208893,0.48418075,68144.0,68143.0,0.11009885]
[1729827211191,0.48418075,68144.0,68143.0,0.3134622]
[1729827212703,0.48418075,68144.0,68143.0,0.2400542]
[1729827213905,0.434207,68144.0,68143.0,0.2400542]
[1729827214206,0.48418075,68144.0,68143.0,0.2400542]
[1729827214905,0.5341545,68144.0,68143.0,0.2400542]
[1729827215400,0.5341545,68144.0,68143.0,0.23566976]
[1729827219196,0.5341545,68144.0,68143.0,0.09066429]
[1729827222817,0.5341545,68144.0,68143.0,0.05856429]
[1729827223204,0.073408,68143.0,68142.0,0.05856429]
[1729827223508,0.12338175,68143.0,68142.0,0.05856429]
[1729827226208,0.04997375,68143.0,68142.0,0.20409094]
[1729827226414,0.12338175,68143.0,68142.0,0.20409094]
[1729827229318,0.073408,68143.0,68142.0,0.20409094]
[1729827229515,0.12338175,68143.0,68142.0,0.20409094]
[1729827231319,0.073408,68143.0,68142.0,0.20409094]
[1729827231507,0.073408,68143.0,68142.0,0.27749994]
[1729827232217,0.073408,68143.0,68142.0,0.27757956]
[1729827233407,0.073408,68143.0,68142.0,0.28217057]
[1729827234109,0.073408,68143.0,68142.0,0.20876157]
[1729827234313,0.073408,68143.0,68142.0,0.00459101]
[1729827236619,0.12338175,68143.0,68142.0,0.00459101]
[1729827238313,0.04997375,68142.0,68140.0,0.14670637]
[1729827238513,0.07341,68141.0,68140.0,0.14670637]
[1729827238713,0.07341,68141.0,68140.0,0.15129737]
[1729827239314,0.07341,68141.0,68140.0,0.07341]
[1729827240625,0.07341,68141.0,68140.0,0.078001]
[1729827241017,0.07341,68141.0,68140.0,0.15129737]
[1729827241320,0.07341,68141.0,68140.0,0.28222704]
[1729827242620,0.04997375,68142.0,68140.0,0.20881704]
[1729827242823,0.3608,68144.0,68141.0,0.20881704]
[1729827243024,0.073408,68143.0,68142.0,0.38217254]
[1729827243325,0.073404,68147.0,68143.0,0.073408]
[1729827243530,0.073401,68151.0,68150.0,0.073399]
[1729827243725,0.073401,68151.0,68150.0,0.32759879]
[1729827243921,0.073401,68151.0,68150.0,0.38216293]
[1729827244427,0.36184001,68154.0,68150.0,0.4370721]
[1729827244630,0.3608,68154.0,68153.0,0.12337075]
[1729827244926,0.04997375,68163.0,68157.0,0.073392]
[1729827245228,0.073391,68159.0,68158.0,0.38029527]
[1729827247420,0.04997375,68165.0,68158.0,0.30690427]
[1729827247624,0.04997375,68165.0,68164.0,0.04997375]
[1729827247924,0.12335775,68165.0,68164.0,0.30338732]
[1729827248127,0.12335775,68165.0,68164.0,0.30334061]
[1729827248423,0.12335775,68165.0,68164.0,0.14229579]
[1729827248829,0.12335775,68165.0,68164.0,0.09232204]
[1729827249722,0.12335775,68165.0,68164.0,0.21568079]
[1729827250529,0.3608,68168.0,68164.0,0.14229579]
[1729827250728,0.3608,68168.0,68167.0,0.12335575]
[1729827251033,0.3608,68168.0,68167.0,0.21567779]
[1729827252121,0.434181,68168.0,68167.0,0.12335575]
[1729827252432,0.434181,68168.0,68167.0,0.12794501]
[1729827253331,0.3608,68168.0,68167.0,0.12794501]
[1729827253729,0.3608,68168.0,68167.0,0.2008905]
[1729827254131,0.3608,68168.0,68167.0,0.12794501]
[1729827254633,0.3608,68168.0,68167.0,0.12335575]
[1729827254831,0.3608,68168.0,68167.0,0.12794477]
[1729827256528,0.073377,68171.0,68170.0,0.073379]
[1729827256831,0.48414675,68176.0,68172.0,0.073376]
[1729827257136,0.41077375,68176.0,68173.0,0.0999475]
[1729827257530,0.073374,68174.0,68173.0,0.1733215]
[1729827257737,0.00096,68176.0,68173.0,0.10453631]
[1729827257930,0.07337,68178.0,68176.0,0.073371]
[1729827258130,0.07337,68178.0,68177.0,0.13723631]
[1729827258331,0.3608,68185.0,68177.0,0.1372359]
[1729827258332,0.04997375,68183.0,68177.0,0.1372359]
[1729827258528,0.07337,68179.0,68178.0,0.073369]
[1729827258733,0.07337,68179.0,68178.0,0.07795735]
[1729827259239,0.07337,68179.0,68178.0,0.073369]
[1729827260135,0.07337,68178.0,68177.0,0.0327]
[1729827260352,0.12334375,68178.0,68177.0,0.0327]
[1729827262637,0.12334375,68178.0,68177.0,0.04974301]
[1729827262842,0.12334375,68178.0,68177.0,0.01704301]
[1729827263037,0.073374,68174.0,68173.0,0.0999475]
[1729827263240,0.073375,68173.0,68172.0,0.165176]
[1729827263741,0.073375,68173.0,68172.0,0.09047652]
[1729827266441,0.073375,68173.0,68172.0,0.01710052]
[1729827266634,0.04997375,68172.0,68168.0,0.05827517]
[1729827266834,0.073383,68166.0,68165.0,0.0918]
[1729827267139,0.073384,68165.0,68164.0,0.165184]
[1729827267937,0.04997375,68165.0,68162.0,0.0325]
[1729827268140,0.04997375,68164.0,68163.0,0.21515975]
[1729827268346,0.073382,68168.0,68166.0,0.073382]
[1729827268540,0.073382,68168.0,68167.0,0.0999475]
[1729827268743,0.073382,68168.0,68167.0,0.15822533]
[1729827269142,0.073382,68168.0,68167.0,0.0999475]
[1729827270335,0.073382,68168.0,68167.0,0.1733295]
[1729827270542,0.073382,68168.0,68167.0,0.073382]
[1729827271443,0.073382,68168.0,68167.0,0.16350354]
[1729827272441,0.073377,68172.0,68170.0,0.073378]
[1729827272638,0.073376,68172.0,68171.0,0.19006904]
[1729827273349,0.073376,68172.0,68171.0,0.26344604]
[1729827273550,0.073376,68172.0,68171.0,0.26814615]
[1729827274342,0.3608,68173.0,68171.0,0.19476915]
[1729827274546,0.3608,68173.0,68172.0,0.16360872]
[1729827274754,0.434175,68173.0,68172.0,0.16360872]
[1729827275244,0.434175,68173.0,68172.0,0.16819765]
[1729827275439,0.434175,68173.0,68172.0,0.07796493]
[1729827276043,0.3608,68173.0,68172.0,0.16825074]
[1729827276435,0.3608,68173.0,68172.0,0.07796493]
[1729827279049,0.434175,68173.0,68172.0,0.07796493]
[1729827284354,0.48414875,68173.0,68172.0,0.07796493]
[1729827284549,0.5341225,68173.0,68172.0,0.00458893]
[1729827284750,0.4607475,68173.0,68171.0,0.016573]
[1729827284953,0.073378,68171.0,68170.0,0.073378]
[1729827285359,0.073377,68171.0,68166.0,0.165423]
[1729827285652,0.073382,68167.0,68166.0,0.2653705]
[1729827285858,0.073382,68167.0,68166.0,0.1733305]
[1729827286652,0.073378,68171.0,68169.0,0.073379]
[1729827286850,0.04997375,68172.0,68169.0,0.073379]
[1729827287057,0.073379,68170.0,68169.0,0.073379]
[1729827288248,0.073379,68170.0,68169.0,0.17791543]
[1729827293155,0.434177,68173.0,68172.0,0.073376]
[1729827293358,0.434177,68173.0,68172.0,0.12185206]
[1729827293656,0.434177,68173.0,68172.0,0.04847606]
[1729827294252,0.434177,68173.0,68172.0,0.00458893]
[1729827294849,0.434177,68173.0,68172.0,0.09505581]
[1729827298251,0.434177,68173.0,68172.0,0.20295276]
[1729827298658,0.434177,68173.0,68172.0,0.20300675]
[1729827298857,0.434177,68173.0,68172.0,0.19841782]
[1729827299058,0.434177,68173.0,68172.0,0.20300675]
[1729827301459,0.434177,68173.0,68172.0,0.19841782]
[1729827302461,0.434177,68173.0,68172.0,0.20300675]
[1729827308152,0.434177,68173.0,68172.0,0.20294332]
[1729827308360,0.434177,68173.0,68172.0,0.30289082]
[1729827308655,0.073377,68173.0,68172.0,0.37626682]
[1729827311771,0.073377,68173.0,68172.0,0.30267234]
[1729827312162,0.073377,68173.0,68172.0,0.37604834]
[1729827312759,0.073372,68177.0,68176.0,0.073372]
[1729827313064,0.073372,68177.0,68176.0,0.26830048]
[1729827314064,0.073372,68177.0,68176.0,0.37585205]
[1729827314260,0.073372,68177.0,68176.0,0.26830048]
[1729827314461,0.073372,68177.0,68176.0,0.37581153]
[1729827314866,0.073372,68177.0,68176.0,0.26830048]
[1729827315072,0.073372,68177.0,68176.0,0.37581605]
[1729827315265,0.073372,68177.0,68176.0,0.26830048]
[1729827315766,0.073372,68177.0,68176.0,0.37576969]
[1729827315970,0.073372,68177.0,68176.0,0.26830048]
[1729827316361,0.073372,68177.0,68176.0,0.26813645]
[1729827316863,0.073372,68177.0,68176.0,0.37565344]
[1729827317064,0.073372,68177.0,68176.0,0.30228144]
[1729827317272,0.12334575,68177.0,68176.0,0.09481695]
[1729827317467,0.12334575,68177.0,68176.0,0.09022802]
[1729827317661,0.12334575,68177.0,68176.0,0.09481667]
[1729827317862,0.12334575,68177.0,68176.0,0.1780051]
[1729827318669,0.12334575,68177.0,68176.0,0.09022802]
[1729827321271,0.12334575,68177.0,68176.0,0.09053411]
[1729827324072,0.48414575,68177.0,68176.0,0.09053411]
[1729827324570,0.9741595,68177.0,68176.0,0.09053411]
[1729827324877,0.0999475,68176.0,68168.0,0.0439073]
[1729827325066,0.12335475,68168.0,68167.0,0.0439073]
[1729827325266,0.12335475,68168.0,68156.0,0.20966338]
[1729827325267,0.073383,68166.0,68165.0,0.0439073]
[1729827325571,0.12335675,68166.0,68165.0,0.0439073]
[1729827325969,0.12335775,68165.0,68164.0,0.0439073]
[1729827326276,0.12335875,68164.0,68163.0,0.0439073]
[1729827327173,0.12335975,68163.0,68162.0,0.0439073]
[1729827327369,0.48415975,68163.0,68162.0,0.0439073]
[1729827327764,0.07339,68159.0,68158.0,0.05854307]
[1729827327968,0.12336375,68159.0,68158.0,0.06313275]
[1729827329072,0.12336375,68159.0,68158.0,0.00458968]
[1729827332066,0.1733375,68159.0,68158.0,0.00458968]
[1729827339778,0.1733375,68159.0,68158.0,0.0945603]
[1729827339994,0.1733375,68159.0,68158.0,0.09456046]
[1729827343584,0.1733375,68159.0,68158.0,0.09456047]
[1729827344493,0.1733375,68159.0,68158.0,0.00458985]
[1729827344989,0.07339,68159.0,68158.0,0.00458985]
[1729827345992,0.07339,68159.0,68158.0,0.0545636]
[1729827346195,0.07339,68159.0,68158.0,0.10453735]
[1729827346393,0.3608,68163.0,68160.0,0.073389]
[1729827346588,0.073387,68162.0,68161.0,0.03638985]
[1729827347294,0.073387,68162.0,68161.0,0.03638964]
[1729827347483,0.12336075,68162.0,68161.0,0.03638964]
[1729827348095,0.1733345,68162.0,68161.0,0.03638964]
[1729827350291,0.1733345,68162.0,68161.0,0.12630488]
[1729827350590,0.1733345,68162.0,68161.0,0.03638964]
[1729827351297,0.1733345,68162.0,68161.0,0.19949244]
[1729827351496,0.1733345,68162.0,68161.0,0.03638964]
[1729827352699,0.1733345,68162.0,68161.0,0.12640856]
[1729827354695,0.1733345,68162.0,68161.0,0.12181892]
[1729827354997,0.1733345,68162.0,68161.0,0.12640856]
[1729827356798,0.1733345,68162.0,68161.0,0.03638964]
[1729827357796,0.1733345,68162.0,68161.0,0.12649369]
[1729827361898,0.1733345,68162.0,68161.0,0.03638964]
[1729827362498,0.1733345,68162.0,68161.0,0.0318]
[1729827362699,0.1733345,68162.0,68161.0,0.03638964]
[1729827362902,0.1733345,68162.0,68161.0,0.12649242]
[1729827363406,0.1733345,68162.0,68161.0,0.22643992]
[1729827363407,0.073387,68162.0,68161.0,0.22643992]
[1729827363899,0.073387,68162.0,68161.0,0.22643981]
[1729827364098,0.073385,68166.0,68165.0,0.073383]
[1729827364303,0.073385,68166.0,68165.0,0.26802281]
[1729827364507,0.073385,68166.0,68165.0,0.35589343]
[1729827365093,0.073385,68166.0,68165.0,0.26802281]
[1729827365605,0.073385,68166.0,68165.0,0.30082281]
[1729827366295,0.073385,68166.0,68165.0,0.22743981]
[1729827366498,0.1733325,68166.0,68165.0,0.12749231]
[1729827366908,0.1733325,68166.0,68165.0,0.12290278]
[1729827367102,0.1733325,68166.0,68165.0,0.12749214]
[1729827369006,0.12335875,68166.0,68165.0,0.12749214]
[1729827369204,0.073385,68166.0,68165.0,0.30082364]
[1729827369805,0.073385,68166.0,68165.0,0.22743964]
[1729827370006,0.073385,68166.0,68165.0,0.3343038]
[1729827370707,0.073385,68166.0,68165.0,0.22743964]
[1729827371204,0.073385,68166.0,68165.0,0.33431543]
[1729827371405,0.073385,68166.0,68165.0,0.33430422]
[1729827371605,0.073385,68166.0,68165.0,0.35100036]
[1729827371817,0.1733325,68166.0,68165.0,0.25105286]
[1729827373809,0.12335875,68166.0,68165.0,0.25108913]
[1729827374116,0.073385,68166.0,68165.0,0.35103235]
[1729827375412,0.073385,68166.0,68165.0,0.35053431]
[1729827376711,0.073385,68166.0,68165.0,0.34594495]
[1729827377112,0.073385,68166.0,68165.0,0.14944364]
[1729827377905,0.073385,68166.0,68165.0,0.22282764]
[1729827381715,0.073381,68168.0,68167.0,0.073381]
[1729827382412,0.434177,68172.0,68167.0,0.04997375]
[1729827382612,0.434177,68172.0,68166.0,0.05853146]
[1729827382613,0.073373,68176.0,68175.0,0.073373]
[1729827382808,0.073373,68176.0,68175.0,0.1733205]
[1729827383015,0.073373,68176.0,68175.0,0.21721192]
[1729827383420,0.12334675,68176.0,68175.0,0.04389142]
[1729827383618,0.04997375,68175.0,68174.0,0.04389142]
[1729827383812,0.12334675,68175.0,68174.0,0.04389142]
[1729827384416,0.073374,68174.0,68172.0,0.0999475]
[1729827385015,0.073374,68174.0,68172.0,0.11714568]
[1729827385515,0.073374,68174.0,68173.0,0.08908719]
[1729827389519,0.073374,68174.0,68172.0,0.09057418]
[1729827389830,0.073375,68173.0,68172.0,0.09057418]
[1729827390126,0.04997375,68175.0,68174.0,0.073374]
[1729827390325,0.04997375,68177.0,68175.0,0.073373]
[1729827390516,0.073372,68176.0,68175.0,0.1611242]
[1729827390719,0.073372,68176.0,68175.0,0.16250329]
[1729827391326,0.073372,68176.0,68175.0,0.21247704]
[1729827391522,0.073372,68176.0,68175.0,0.26245079]
[1729827392524,0.073372,68176.0,68175.0,0.18907779]
[1729827393532,0.12334575,68176.0,68175.0,0.08913029]
[1729827394026,0.1733195,68176.0,68175.0,0.08913029]
[1729827394836,0.1733195,68176.0,68172.0,0.0999475]
[1729827395024,0.3608,68180.0,68177.0,0.073371]
[1729827395228,0.3608,68180.0,68179.0,0.0999475]
[1729827395935,0.3608,68180.0,68179.0,0.18903341]
[1729827396326,0.3608,68180.0,68179.0,0.08908591]
[1729827396724,0.434168,68180.0,68179.0,0.08908591]
[1729827399234,0.04997375,68179.0,68172.0,0.073375]
[1729827399437,0.04997375,68173.0,68172.0,0.073375]
[1729827400241,0.12334875,68173.0,68172.0,0.073375]
[1729827405237,0.073376,68172.0,68170.0,0.10882993]
[1729827405435,0.073377,68171.0,68170.0,0.10882993]
[1729827405632,0.12335075,68171.0,68170.0,0.01706993]
[1729827405936,0.073384,68165.0,68161.0,0.09176]
[1729827406138,0.1733315,68165.0,68161.0,0.09176]